Cogmind - Beta 13 @@@ ROGUE MODE // 2024.05.02 @ 19:08:18 Player: Bzilon Result: Destroyed by G-34 Mercenary with Small Laser Performance ------------- Evolutions (1) 500 Regions Visited (3) 600 Robots Destroyed (20) 100 Value Destroyed (596) 596 Prototype IDs (0) 0 Alien Tech Used (0) 0 Bonus (0) 0 TOTAL SCORE: 1796 Bonus ------- None Cogmind --------- Core Integrity 0/400 Matter 80/300 Energy 100/100 System Corruption 0% Temperature Cool (6) Movement Core (1400) Ox27 Location -9/Materials Parts ------- > --- POWER (1) -------- (None) > --- PROPULSION (3) --- (None) > --- UTILITY (3) ------ Huge Storage Unit Signal Interpreter > --- WEAPON (2) ------- Katana > --- INVENTORY (25) --- Wheel Improved Heat Sink Small Storage Unit Small Storage Unit Sensor Array Peak State ------------ > --- POWER ------------ (None) > --- PROPULSION ------- Wheel Compact Wheel Compact Wheel > --- UTILITY ---------- Huge Storage Unit Signal Interpreter Targeting Computer > --- WEAPON ----------- Particle Gun Grenade Launcher > --- INVENTORY -------- Light Ion Engine Light Treads Wheel Improved Heat Sink Small Storage Unit Small Storage Unit Sensor Array EM Pulse Gun Mining Laser [Rating: 10] Favorites ----------- Power Light Ion Engine Engine Light Ion Engine Propulsion Light Treads Treads Light Treads Wheel Compact Wheel Utility Small Storage Unit Storage Small Storage Unit Processor Targeting Computer Protection Light Armor Plating Weapon Grenade Launcher Energy Gun Particle Gun Ballistic Gun Light Assault Rifle Launcher Grenade Launcher Special Weapon Mining Laser Slashing Weapon Katana Build | -11 -10 -10 -9 ------- Run | Yrd Mat Min Mat Slots Evolved 2 | . . . 2 Power . | . . . . Propulsion 1 | . . . 1 Utility 1 | . . . 1 Weapon . | . . . . Parts Attached 25 | 8 8 . 9 Power 3 | 1 1 . 1 Engine 3 | 1 1 . 1 Core . | . . . . Reactor . | . . . . Propulsion 6 | 2 2 . 2 Treads 3 | 2 . . 1 Leg . | . . . . Wheel 3 | . 2 . 1 Hover . | . . . . Flight . | . . . . Utility 6 | 2 2 . 2 Device . | . . . . Storage 3 | 2 1 . . Processor 2 | . 1 . 1 Hackware . | . . . . Protection 1 | . . . 1 Artifact . | . . . . Weapon 10 | 3 3 . 4 Energy Gun 5 | 1 2 . 2 Energy Cannon . | . . . . Ballistic Gun 2 | 2 . . . Ballistic Cannon . | . . . . Launcher 1 | . 1 . . Special Weapon 1 | . . . 1 Impact Weapon . | . . . . Slashing Weapon 1 | . . . 1 Piercing Weapon . | . . . . Special Melee Weapon . | . . . . Unidentified Prototypes . | . . . . Parts Lost 18 | . 6 . 12 Power 3 | . 2 . 1 Propulsion 6 | . 2 . 4 Utility 2 | . . . 2 Weapon 7 | . 2 . 5 Highest Loss Streak 7 | . 3 . 7 To Critical Strikes . | . . . . Average Slot Usage (%) 81 | . 93 85 63 Engine 4 | . 9 . . Treads 8 | . 20 . 1 Wheel 13 | . 6 28 11 Storage 17 | . 25 14 11 Processor 10 | . 2 14 16 Protection 1 | . . . 4 Energy Gun 9 | . 6 14 8 Ballistic Gun 6 | . 15 . . Launcher 7 | . 6 14 2 Slashing Weapon 1 | . . . 4 Naked Turns . | . . . . Heaviest Build 95 | 16 95 86 88 Greatest Support 42 | 40 40 32 42 Greatest Overweight (x) 29 | . 2 2 29 Average Overweight (x) 1 | . . 2 5 Largest Inventory Capacity 25 | 8 25 25 25 Average Capacity 18 | 7 17 25 25 Most Carried 11 | 8 10 11 10 Average Carried 7 | 5 8 10 6 Final Capacity 25 | 8 25 25 25 Final Carried 11 | 7 9 11 5 Class Distribution -------------------- 100% | Mutant Dominant Class ---------------- Mutant | -10/Materials Mutant | -10/Mines Mutant | -9/Materials Resources | -11 -10 -10 -9 ----------- Run | Yrd Mat Min Mat Matter Collected 303 | 175 59 29 40 Remotely . | . . . . Salvage Created 661 | 74 393 . 194 Parts 37 | 6 18 . 13 Haulers Intercepted . | . . . . Recyclers Shooed 1 | . 1 . . Parts Field Recycled . | . . . . Retrieved Matter . | . . . . Parts Self-Destructed . | . . . . Prevented . | . . . . Kills | -11 -10 -10 -9 ------- Run | Yrd Mat Min Mat Combat Hostiles Destroyed 17 | . 10 . 7 Guns 12 | . 8 . 4 AOE 5 | . 2 . 3 Classes Destroyed 6 | 2 1 . 3 Tunneler 2 | 1 . . 1 Recycler 1 | 1 . . . Swarmer 3 | . . . 3 Grunt 12 | . 10 . 2 Duelist 1 | . . . 1 Sentry 1 | . . . 1 Best Kill Streak 5 | 2 5 . 3 Combat Bots Only 5 | . 5 . 3 Max Kills in Single Turn 2 | 1 2 . 2 Gunslinging . | . . . . Exploded 2 | . 2 . 2 Melee . | . . . . Uniques/NPCs Destroyed . | . . . . Combat | -11 -10 -10 -9 -------- Run | Yrd Mat Min Mat Hostile Shots Fired 194 | . 89 . 105 Missed 54 | . 21 . 33 Damage Taken 1786 | . 850 . 936 Core 569 | . 167 . 402 Absorbed by Shields . | . . . . Core Remaining (%) 66 | 100 . 33 . Volleys Fired 88 | 2 47 . 39 Largest 2 | 2 2 . 2 Hottest 140 | 60 95 . 140 Shots Fired 112 | 4 68 . 40 Gun 103 | 4 65 . 34 Cannon . | . . . . Launcher 8 | . 3 . 5 Special 1 | . . . 1 Kinetic 41 | 2 39 . . Thermal 43 | . 19 . 24 Explosive 8 | . 3 . 5 Electromagnetic 20 | 2 7 . 11 Robot Hit Streak 13 | 2 8 . 13 Robot Miss Streak 4 | 1 4 . 1 Penetration Max . | . . . . Secondary Targets 1 | . 1 . . Max Gunslinging Chain 1 | . 1 . . Shots Hit Robots 72 | 3 42 . 27 Core Hits 35 | 1 22 . 12 Critical Kills . | . . . . Critical Parts Destroyed . | . . . . Critical Strikes 2 | . . . 2 Burn 2 | . . . 2 Melee Attacks . | . . . . Impact . | . . . . Slashing . | . . . . Piercing . | . . . . Sneak Attacks . | . . . . Combat Hostiles . | . . . . Follow-up Attacks . | . . . . Damage Inflicted 1321 | 38 702 . 581 Guns 947 | 32 565 . 350 Cannons . | . . . . Explosions 311 | . 104 . 207 Melee . | . . . . Ramming 39 | 6 33 . . Kinetic 266 | 20 246 . . Thermal 538 | . 266 . 272 Explosive 311 | . 104 . 207 Electromagnetic 167 | 12 53 . 102 Impact . | . . . . Slashing . | . . . . Piercing . | . . . . Highest Corruption . | . . . . Average Corruption . | . . . . Corruption Purged . | . . . . Corruption Blocked . | . . . . Overload Shots . | . . . . Overflow Damage 3 | . . . 3 Projectiles . | . . . . Explosions 3 | . . . 3 Melee . | . . . . Knockbacks . | . . . . Impact . | . . . . Kinetic . | . . . . Secondary . | . . . . Self-Inflicted Damage 32 | . 21 . 11 Shots 2 | . 1 . 1 Rammed 2 | . 2 . . Targets Rammed 3 | 1 2 . . Kicked . | . . . . Crushed 1 | 1 . . . Highest Temperature 510 | 40 510 . 109 Average Temperature 110 | 20 155 . 38 Received Heat Transfer 762 | . 474 . 288 Effects 3 | . 3 . . Matter Decay 1 | . 1 . . Short Circuit 1 | . 1 . . Damage (minor) 1 | . 1 . . Siege Activations . | . . . . Robots Corrupted . | . . . . Combat Hostiles . | . . . . Parts Fried 1 | . 1 . . Impact Corruptions . | . . . . Robots Melted . | . . . . Combat Hostiles . | . . . . Parts Melted 5 | . 1 . 4 Heat Transferred 1456 | . 629 . 827 Parts Sabotaged . | . . . . Parts Stolen . | . . . . Parts Stripped . | . . . . Power Chain Reactions . | . . . . Alert | -11 -10 -10 -9 ------- Run | Yrd Mat Min Mat Peak Influence 255 | 10 255 99 165 Initial 99 | . 6 99 38 Average 94 | 7 121 99 129 Maximum Alert Level 1 | . 1 . . Low Security (%) 88 | 100 64 100 100 Level 1 11 | . 35 . . Level 2 . | . . . . Level 3 . | . . . . Level 4 . | . . . . Level 5 . | . . . . High Security . | . . . . Max Security . | . . . . Squads Dispatched 3 | . 1 . 2 Investigation 1 | . 1 . . Extermination . | . . . . Reinforcement 2 | . . . 2 Assault . | . . . . Garrison . | . . . . Intercept . | . . . . Searches Triggered . | . . . . Construction Impeded . | . . . . Haulers Reinforced . | . . . . Active Scanning Responses . | . . . . Cargo Convoy Interrupts . | . . . . Stealth | -11 -10 -10 -9 --------- Run | Yrd Mat Min Mat Distress Signals . | . . . . Communications Jammed . | . . . . Distress Signals . | . . . . Times Spotted 26 | . 15 . 11 Peak Tracking Total 8 | . 8 . 3 Tactical Retreats 1 | . 1 . . Traps | -11 -10 -10 -9 ------- Run | Yrd Mat Min Mat Traps Triggered 1 | . 1 . . Indirectly . | . . . . Trap Hack Attempts . | . . . . Triggered . | . . . . Disarmed . | . . . . Reprogrammed . | . . . . Reused . | . . . . Traps Extracted . | . . . . Installed . | . . . . Triggered . | . . . . Machines | -11 -10 -10 -9 ---------- Run | Yrd Mat Min Mat Machines Disabled 2 | . 2 . . Max in Single Turn 1 | . 1 . . Machines Repaired . | . . . . Machines Dismantled . | . . . . Machines Sabotaged . | . . . . Overloaded Fab Kills . | . . . . Hacking | -11 -10 -10 -9 --------- Run | Yrd Mat Min Mat Machines Accessed . | . . . . Terminals . | . . . . Fabricators . | . . . . Repair Stations . | . . . . Recycling Units . | . . . . Scanalyzers . | . . . . Garrison Access . | . . . . Total Hacks . | . . . . Successful . | . . . . Failed . | . . . . Catastrophic . | . . . . Database Lockouts . | . . . . Manual . | . . . . Terminals . | . . . . Fabricators . | . . . . Repair Stations . | . . . . Recycling Units . | . . . . Scanalyzers . | . . . . Garrison Access . | . . . . Terminal Hacks . | . . . . Fabricator Hacks . | . . . . Repair Station Hacks . | . . . . Recycling Unit Hacks . | . . . . Scanalyzer . | . . . . Garrison Access Hacks . | . . . . Unauthorized Hacks . | . . . . Terminals . | . . . . Fabricators . | . . . . Repair Stations . | . . . . Recycling Units . | . . . . Scanalyzers . | . . . . Garrison Access . | . . . . Data Cores Recovered . | . . . . Used . | . . . . Hacking Detections . | . . . . Full Trace Events . | . . . . Feedback Events . | . . . . Feedback Blocked . | . . . . Robot Schematics Acquired . | . . . . Robots Built . | . . . . Authchips . | . . . . Time . | . . . . Total Robot Build Rating . | . . . . Part Schematics Acquired . | . . . . Parts Built . | . . . . Authchips . | . . . . Time . | . . . . Total Part Build Rating . | . . . . Parts Repaired . | . . . . Time . | . . . . Parts Recycled . | . . . . Recycled Matter . | . . . . Retrieved Matter . | . . . . Retrieved Components . | . . . . Parts Scanalyzed . | . . . . Part Schematics Acquired . | . . . . Parts Damaged . | . . . . Bothacking | -11 -10 -10 -9 ------------ Run | Yrd Mat Min Mat Used RIF Installer . | . . . . Robots Hacked . | . . . . Non-combat . | . . . . Combat . | . . . . Robot Hacks Applied . | . . . . Relay Couplers Released . | . . . . Fabnet Peak Effective % . | . . . . Robots Rewired . | . . . . Allies Hacked . | . . . . Hacks Repelled . | . . . . Allies | -11 -10 -10 -9 -------- Run | Yrd Mat Min Mat Total Allies 1 | . . 1 . Largest Group 1 | . . 1 1 Highest-Rated Group 31 | . . 31 31 Highest-Rated Ally 31 | . . 31 31 Total Orders . | . . . . Ally Attacks 5 | . . . 5 Total Damage 20 | . . . 20 Kills . | . . . . Allies Corrupted . | . . . . Allies Melted . | . . . . Intel | -11 -10 -10 -9 ------- Run | Yrd Mat Min Mat Robot Analysis Total . | . . . . Derelict Logs Recovered . | . . . . Drone Launches . | . . . . Drone Recoveries . | . . . . Exploration | -11 -10 -10 -9 ------------- Run | Yrd Mat Min Mat Turns Passed 1041 | 219 344 221 257 Spaces Moved 486 | 120 137 169 60 Core 12 | 6 . . 6 Treads 196 | 114 80 . 2 Legs . | . . . . Wheels 278 | . 57 169 52 Hover . | . . . . Flight . | . . . . Fastest Speed 50 | 50 130 130 123 Average Speed 160 | 154 153 130 277 Slowest Speed 1500 | 160 320 130 1500 Overloaded Moves . | . . . . Propulsion Burnouts . | . . . . Robots Hopped . | . . . . Cave-ins Triggered . | . . . . Exploration Rate (%) 21 | 8 30 35 11 Regions Visited 3 Branch Regions 1 Pre-discovered Areas . | . . . . Known Exits Taken . | . . . . Unknown Exits Taken 3 | 1 1 1 . Scrap Searched 1 | . . 1 . Spaces Dug 6 | . 6 . . Terrain Destroyed 43 | . 16 . 27 Melee . | . . . . Projectile . | . . . . AOE 43 | . 16 . 27 Terrain Rammed . | . . . . Walls Destroyed . | . . . . Machines Disabled . | . . . . Actions | -11 -10 -10 -9 --------- Run | Yrd Mat Min Mat Total 640 | 153 206 170 111 Wait 3 | 3 . . . Move 483 | 119 136 168 60 Hop . | . . . . Pick Up 32 | 17 10 2 3 Fast Attach . | . . . . Attach 21 | 7 5 . 9 Detach . | . . . . Swap 4 | 1 3 . . Drop 6 | 3 3 . . Fire 88 | 2 47 . 39 Melee . | . . . . Ram 2 | . 2 . . Kick . | . . . . Crush 1 | 1 . . . Escape Stasis . | . . . . Rewire . | . . . . Trap . | . . . . Miscellaneous . | . . . . Route ------- -11/Scrapyard -10/Materials -10/Mines -9/Materials History --------- Turn | Location | Event 54 | -11/Scrapyard | Discovered new exit (range 16) 220 | -11/Scrapyard | Entered Materials 335 | -10/Materials | Build established: Mutant 459 | -10/Materials | Lost 3 parts (1p2w) 470 | -10/Materials | Core integrity fell below 50% 502 | -10/Materials | Lost 3 parts (1p2n) 556 | -10/Materials | Discovered new exit (range 7) 564 | -10/Materials | Entered Mines 567 | -10/Mines | Received a Mining Laser from a helpful Derelict 641 | -10/Mines | Met a Derelict bent on vengeance 763 | -10/Mines | Discovered new exit (range 13) 785 | -10/Mines | Entered Materials 785 | -9/Materials | Accompanied by 1 ally 785 | -9/Materials | Evolved 2 slots: Propulsion x1, Utility x1 878 | -9/Materials | Lost 3 parts (1n2w) 899 | -9/Materials | Core integrity fell below 50% 967 | -9/Materials | Lost 7 parts (1p3n1u2w) 1025 | -9/Materials | Core integrity fell below 20% 1042 | -9/Materials | Destroyed by G-34 Mercenary with Small Laser Last Messages --------------- K-01 Serf collects debris. U-05 Engineer lays Concrete. K-01 Serf collects debris. O-16 Technician: "IFF HANDSHAKE FAILED. SECURING TERMINAL." K-01 Serf collects debris. O-16 Technician suffers critical hit (Burn). K-01 Serf collects debris. T-07 Excavator destroyed. K-01 Serf collects debris. R-06 Scavenger collects Wheel. K-01 Serf collects debris. R-06 Scavenger collects Imp. Terrain Scanner. K-01 Serf collects debris. ALERT: Hostiles spotted, dispatching reinforcements to Terminal M003. K-01 Serf collects debris. Lgt. Armor Plating destroyed. Beam Rifle destroyed. A-02 Transporter destroyed. Map ----- +----------------------------------------------------+ | ????????????????????????????# #???? #?????? | | ????????????????????????????# #??? #?????? | | ????????????????????????????# #??? #?????? | | ??????????????????########### #?? #?????? | | ??????????????????# # #?? #?????? | | ????????????????????""" # #? #?????? | | ??????????????????? """ # ## #?????? | | ??????????????????? """ #?????????? | | ??????????????????? """ "" ##?????????? | | ??????????????????# """ T" # #?????????? | | ??????????????????# "" # # #?????????? | | ??????????????????# = # #?????????? | | ??????????????????######### #[ [ #?????????? | | ??????????????????????????# # ##?????????? | | ??????????????????????????# # ##??????????? | | ??????????????????????????### #???????????? | | ????????????????????????????# #???????????? | | ????????????????????????????# ##??????????? | | ???????????????????????????## #??????????? | | ???????????????????????????# ##??????????? | | ???????????????????????????# #??????????? | | ???????????????????????????# #??????????? | | ???????????????????????????## ###?????????? | | ??????????????##+############! #?????????? | | ??????????????# %g =!%!!% #?????????? | | ??????????????# g @ !!= #?????????? | | ??????????????# %% #?????????? | | ??????????????#########+##### #?????????? | | ????????????????????? % ??## ##?????????? | | ??????????????????? ??# #??????????? | | ?????????????????? ?# #??????????? | | ???????????????? ## + ?????????? | | ??????????????? ## # ????????? | | ??????????????# ## # ???????? | | ??????????????########+####### #?"" ??????? | | ????????????????????????????? #?"Y "?????? | | ????????????????????????????? #??????????? | | ????????????????????????????? #??????????? | | ?????????????????????????????#####??????????? | | ????????????????????????????????????????????? | | ????????????????????????????????????????????? | | ????????????????????????????????????????????? | | ????????????????????????????????????????????? | | ????????????????????????????????????????????? | | ????????????????????????????????????????????? | | ????????????????????????????????????????????? | | ????????????????????????????????????????????? | | ????????????????????????????????????????????? | | ????????????????????????????????????????????? | | ????????????????????????????????????????????? | +----------------------------------------------------+ Best States ------------- Heat Dissipation 28 Energy Generation 10 Energy Capacity 250 Matter Stores 200 Matter Capacity 300 Sight Range 16 Terrain Scan Density 10 Armor Coverage 150 Evasion (%) 50 Targeting Accuracy 5 Recoil Reduction 2 Item Schematics ----------------- None Robot Schematics ------------------ None Fabricated ------------ Nothing Alien Tech Used ----------------- None Achievements -------------- None Challenges ------------ None Game ------ Seed PotentialEtherialNukerbomber Manual? 0 Play Time 00:19:33 Cumulative 3.3 hours Start 2024.05.02 @ 18:49:13 End 2024.05.02 @ 19:08:18 Sessions 1 Manual Loads 0 Difficulty Rogue Special Mode None Game No. 4 Rogue 4 Adventurer 0 Explorer 0 Win Type - Total 0 Types 0/0/0/0/0/0/0/0/0 Lore% 4 Gallery% 5 Achievement% 5 Wizard Run 0 Options --------- Layout 1 ASCII 0 Keyboard 0 Movement Arrows Keybinds 0 Fullscreen 2 Font 24/Crisp Map View 25x17 Zoom Use 96% Tactical HUD 0 Map Filters NONE Filters NONE Steam 1 RUN: 695c25f5-727f-478a-9c3a-8df04ad8921b